[Event "Dutch Open 2022"]
[Site "Dieren"]
[Date "2022.08.01"]
[Round "6.16"]
[White "Roorda, Thijs"]
[Black "Albers, Sasa"]
[Result "0-1"]
[ECO "B11"]
[WhiteElo "2113"]
[BlackElo "2203"]
[Annotator "RC"]
[PlyCount "106"]
[EventDate "2022.07.14"]
[EventType "swiss"]
[EventCountry "NED"]
[SourceTitle "playchess.com"]
[Source "ChessBase"]
[SourceQuality "1"]
[TimeControl "40/5400+30:1800+30"]

1. e4 {[%emt 0:00:03]} c6 {[%emt 0:04:45]} 2. Nf3 {[%emt 0:00:06]} d5 {[%emt 0:00:08]} 3. Nc3 {[%emt 0:00:06]} Nf6 {[%emt 0:07:20]} 4. e5 {[%emt 0:01:02]} Ne4 {[%emt 0:00:04]} 5. Ne2 {[%emt 0:00:05]} Qb6 {[%emt 0:00:03]} 6. d4 {[%emt 0:00:45]} e6 {[%emt 0:00:04]} 7. c3 {[%emt 0:16:36]} c5 {[%emt 0:00:39]} 8. Qb3 {[%emt 0:09:20]} Nc6 {[%emt 0:02:20]} 9. Be3 {[%emt 0:00:27]} Bd7 {[%emt 0:10:59]} 10. dxc5 {[%emt 0:19:11]} Qc7 {[%emt 0:02:59]} 11. Ned4 {[%emt 0:04:13]} Nxc5 {[%emt 0:03:19]} 12. Nb5 {[%emt 0:01:58]} Qb8 {[%emt 0:00:49]} 13. Bxc5 {[%emt 0:02:41]} Bxc5 {[%emt 0:00:08]} 14. c4 {[%emt 0:00:10]} Nxe5 {[%emt 0:03:00]} 15. O-O-O {[%emt 0:00:20]} Nxf3 {[%emt 0:04:09]} 16. gxf3 {[%emt 0:00:06]} O-O {[%emt 0:06:40]} 17. cxd5 {[%emt 0:00:11]} Qf4+ {[%emt 0:03:03]} 18. Kb1 {[%emt 0:00:09]} Rac8 {[%emt 0:17:24]} 19. Nc3 {[%emt 0:01:19]} Bxf2 {[%emt 0:01:16]} 20. Bh3 {[%emt 0:03:06]} Qxf3 {[%emt 0:08:59]} 21. dxe6 {[%emt 0:00:22]} Bxe6 {[%emt 0:01:39]} 22. Bxe6 {[%emt 0:00:07]} fxe6 {[%emt 0:00:03]} 23. Qxe6+ {[%emt 0:00:30]} Kh8 {[%emt 0:04:24]} 24. Qd5 {[%emt 0:02:56]} Qf6 {[%emt 0:05:56]} 25. Ne4 {[%emt 0:05:24]} Qg6 {[%emt 0:02:07]} 26. Rd3 {[%emt 0:00:09]} Bb6 {[%emt 0:01:51]} 27. Rhd1 {[%emt 0:05:12]} h6 {[%emt 0:04:17]} 28. Qxb7 {[%emt 0:16:26]} Rb8 {[%emt 0:00:13]} 29. Rd6 {[%emt 0:00:13]} Qxd6 {[%emt 0:01:58]} 30. Nxd6 {[%emt 0:00:14]} Rxb7 {[%emt 0:00:02]} 31. Nxb7 {[%emt 0:00:05]} Rf2 {[%emt 0:00:04]} 32. a4 {[%emt 0:04:22]} Rxh2 {[%emt 0:02:10]} 33. a5 {[%emt 0:00:05]} Bc7 {[%emt 0:01:03]} 34. Rd5 {[%emt 0:01:56]} Re2 {[%emt 0:01:05]} 35. Nd8 {[%emt 0:00:51]} g5 {[%emt 0:02:26]} 36. Nf7+ {[%emt 0:03:46]} Kg7 {[%emt 0:00:02]} 37. Rd7 {[%emt 0:00:15]} Bxa5 {[%emt 0:00:18]} 38. Nxg5+ {[%emt 0:00:15]} Kg6 {[%emt 0:00:32]} 39. Nh3 {[%emt 0:04:13]} Re1+ {[%emt 0:00:02]} 40. Kc2 {[%emt 0:00:06]} Bb6 {[%emt 0:00:18]} 41. Rd6+ {[%emt 0:06:10]} Kh5 {[%emt 0:08:23]} 42. Nf4+ {[%emt 0:05:02]} Kg5 {[%emt 0:00:17]} 43. Nh3+ {[%emt 0:04:40]} Kg4 {[%emt 0:00:52]} 44. Rxh6 {[%emt 0:03:24]} Re2+ {[%emt 0:00:29]} 45. Kb1 {[%emt 0:00:34]} Rh2 {[%emt 0:00:29]} 46. Rc6 {[%emt 0:03:56]} Rxh3 {[%emt 0:01:36]} 47. Ka2 {[%emt 0:00:23]} Kf5 {[%emt 0:00:26]} 48. Rc4 {[%emt 0:00:10]} Ke5 {[%emt 0:00:11]} 49. b3 {[%emt 0:00:05]} Kd5 {[%emt 0:00:48]} 50. Kb2 {[%emt 0:00:26]} Rh2+ {[%emt 0:00:48]} 51. Kc3 {[%emt 0:01:05]} Ba5+ {[%emt 0:00:34]} 52. Kd3 {[%emt 0:00:02]} Rd2+ {[%emt 0:00:26]} 53. Ke3 {[%emt 0:00:04]} Rb2 {[%emt 0:00:25]} 0-1

[Event "Dutch Open 2022"]
[Site "Dieren"]
[Date "2022.08.02"]
[Round "7.1"]
[White "De Winter, Arthur"]
[Black "Lahaye, Rick"]
[Result "1/2-1/2"]
[ECO "B56"]
[WhiteElo "2150"]
[BlackElo "2417"]
[Annotator "RC"]
[PlyCount "42"]
[EventDate "2022.07.14"]
[EventType "swiss"]
[EventCountry "NED"]
[SourceTitle "playchess.com"]
[Source "ChessBase"]
[SourceQuality "1"]
[TimeControl "40/5400+30:1800+30"]

1. e4 {[%emt 0:00:03]} c5 {[%emt 0:00:08]} 2. Nf3 {[%emt 0:00:05]} d6 {[%emt 0:00:12]} 3. d4 {[%emt 0:00:04]} cxd4 {[%emt 0:00:11]} 4. Nxd4 {[%emt 0:00:04]} Nf6 {[%emt 0:00:14]} 5. Nc3 {[%emt 0:00:05]} Bd7 {[%emt 0:00:09]} 6. Bg5 {[%emt 0:01:12]} e6 {[%emt 0:01:07]} 7. Ndb5 {[%emt 0:01:55]} Bxb5 {[%emt 0:00:42]} 8. Bxb5+ {[%emt 0:00:15]} Nc6 {[%emt 0:00:07]} 9. e5 {[%emt 0:04:59]} dxe5 {[%emt 0:01:47]} 10. Qf3 {[%emt 0:00:07]} Be7 {[%emt 0:01:29]} 11. Bxc6+ {[%emt 0:01:07]} bxc6 {[%emt 0:00:04]} 12. Qxc6+ {[%emt 0:00:04]} Kf8 {[%emt 0:00:10]} 13. O-O {[%emt 0:02:45]} Qc8 {[%emt 0:00:58]} 14. Qf3 {[%emt 0:06:15]} Rb8 {[%emt 0:01:55]} 15. Rab1 {[%emt 0:01:33]} h6 {[%emt 0:01:02]} 16. Be3 {[%emt 0:09:36]} Qc7 {[%emt 0:10:45]} 17. Ne4 {[%emt 0:16:06]} Nxe4 {[%emt 0:16:40]} 18. Qxe4 {[%emt 0:00:05]} f5 {[%emt 0:00:06]} 19. Qd3 {[%emt 0:02:42]} Kf7 {[%emt 0:01:21]} 20. c4 {[%emt 0:02:36]} Rhd8 {[%emt 0:06:13]} 21. Qe2 {[%emt 0:00:50]} Bc5 {[%emt 0:16:12]} 1/2-1/2

[Event "Dutch Open 2022"]
[Site "Dieren"]
[Date "2022.08.02"]
[Round "7.2"]
[White "Van Roon, Sjoerd"]
[Black "Maatman, Nick"]
[Result "1-0"]
[ECO "B18"]
[WhiteElo "2310"]
[BlackElo "2368"]
[Annotator "RC"]
[PlyCount "95"]
[EventDate "2022.07.14"]
[EventType "swiss"]
[EventCountry "NED"]
[SourceTitle "playchess.com"]
[Source "ChessBase"]
[SourceQuality "1"]
[TimeControl "40/5400+30:1800+30"]

1. e4 {[%emt 0:00:01]} c6 {[%emt 0:02:10]} 2. d4 {[%emt 0:00:16]} d5 {[%emt 0:00:04]} 3. Nc3 {[%emt 0:01:17]} dxe4 {[%emt 0:00:05]} 4. Nxe4 {[%emt 0:00:01]} Bf5 {[%emt 0:00:43]} 5. Ng3 {[%emt 0:00:03]} Bg6 {[%emt 0:00:03]} 6. Nh3 {[%emt 0:00:04]} e6 {[%emt 0:00:09]} 7. Bc4 {[%emt 0:00:29]} Nf6 {[%emt 0:02:23]} 8. Nf4 {[%emt 0:01:00]} Bd6 {[%emt 0:00:25]} 9. O-O {[%emt 0:01:08]} Qc7 {[%emt 0:00:46]} 10. Nxg6 {[%emt 0:02:02]} hxg6 {[%emt 0:00:03]} 11. Qf3 {[%emt 0:05:46]} Nbd7 {[%emt 0:01:19]} 12. Re1 {[%emt 0:08:08]} O-O-O {[%emt 0:06:30]} 13. a4 {[%emt 0:18:11]} c5 {[%emt 0:06:34]} 14. dxc5 {[%emt 0:08:30]} Bxc5 {[%emt 0:05:45]} 15. a5 {[%emt 0:09:33]} Ne5 {[%emt 0:31:11]} 16. Rxe5 {[%emt 0:00:24]} Qxe5 {[%emt 0:00:02]} 17. a6 {[%emt 0:00:04]} Nd5 {[%emt 0:00:23]} 18. Be2 {[%emt 0:23:06]} bxa6 {[%emt 0:30:28]} 19. Bxa6+ {[%emt 0:05:09]} Kc7 {[%emt 0:05:18]} 20. c4 {[%emt 0:01:26]} Qe1+ {[%emt 0:00:04]} 21. Nf1 {[%emt 0:00:06]} Qxf2+ {[%emt 0:01:20]} 22. Qxf2 {[%emt 0:00:04]} Bxf2+ {[%emt 0:00:02]} 23. Kxf2 {[%emt 0:00:05]} Nb4 {[%emt 0:00:09]} 24. Bf4+ {[%emt 0:00:51]} e5 {[%emt 0:01:31]} 25. Bxe5+ {[%emt 0:02:28]} Kb6 {[%emt 0:00:01]} 26. c5+ {[%emt 0:00:07]} Kxc5 {[%emt 0:00:02]} 27. Bxg7 {[%emt 0:00:33]} Rhe8 {[%emt 0:02:24]} 28. Be2 {[%emt 0:02:14]} Kb6 {[%emt 0:01:30]} 29. Bc3 {[%emt 0:01:51]} Nd3+ {[%emt 0:00:19]} 30. Kg1 {[%emt 0:00:15]} Rd7 {[%emt 0:01:13]} 31. Bf3 {[%emt 0:02:56]} Ne5 {[%emt 0:00:03]} 32. Bd1 {[%emt 0:00:04]} Nc6 {[%emt 0:00:30]} 33. Kf2 {[%emt 0:01:03]} f5 {[%emt 0:01:53]} 34. Ne3 {[%emt 0:00:50]} Kc5 {[%emt 0:00:41]} 35. Ba4 {[%emt 0:01:16]} Re4 {[%emt 0:00:59]} 36. Bxc6 {[%emt 0:02:09]} Kxc6 {[%emt 0:01:28]} 37. Ra6+ {[%emt 0:00:04]} Kb5 {[%emt 0:00:00]} 38. Rxg6 {[%emt 0:00:11]} Rde7 {[%emt 0:00:18]} 39. Nf1 {[%emt 0:01:54]} Rf4+ {[%emt 0:00:21]} 40. Kg1 {[%emt 0:00:08]} Re2 {[%emt 0:00:43]} 41. h3 {[%emt 0:05:36]} a5 {[%emt 0:07:58]} 42. Ng3 {[%emt 0:02:19]} Rc2 {[%emt 0:03:25]} 43. Rg5 {[%emt 0:00:19]} a4 {[%emt 0:04:10]} 44. Nxf5 {[%emt 0:00:09]} Rc1+ {[%emt 0:00:16]} 45. Kh2 {[%emt 0:00:05]} a3 {[%emt 0:00:13]} 46. Ne3+ {[%emt 0:01:24]} Kc6 {[%emt 0:00:32]} 47. Ra5 {[%emt 0:01:46]} Re4 {[%emt 0:00:32]} 48. Nf5 {[%emt 0:01:58]} 1-0

[Event "Dutch Open 2022"]
[Site "Dieren"]
[Date "2022.08.02"]
[Round "7.3"]
[White "Bus, Tom"]
[Black "Domalchuk-Jonasson, Aleksandr"]
[Result "0-1"]
[ECO "A13"]
[WhiteElo "2102"]
[BlackElo "2244"]
[Annotator "RC"]
[PlyCount "82"]
[EventDate "2022.07.14"]
[EventType "swiss"]
[EventCountry "NED"]
[SourceTitle "playchess.com"]
[Source "ChessBase"]
[SourceQuality "1"]
[TimeControl "40/5400+30:1800+30"]

1. c4 {[%emt 0:00:03]} Nf6 {[%emt 0:03:32]} 2. Nf3 {[%emt 0:00:33]} e6 {[%emt 0:00:28]} 3. g3 {[%emt 0:00:23]} d5 {[%emt 0:00:24]} 4. Bg2 {[%emt 0:00:18]} dxc4 {[%emt 0:00:55]} 5. Qa4+ {[%emt 0:01:18]} Nbd7 {[%emt 0:00:53]} 6. O-O {[%emt 0:02:12]} a6 {[%emt 0:02:22]} 7. Qxc4 {[%emt 0:01:09]} c5 {[%emt 0:01:24]} 8. d3 {[%emt 0:07:52]} b5 {[%emt 0:03:23]} 9. Qc2 {[%emt 0:03:50]} Bb7 {[%emt 0:01:38]} 10. a4 {[%emt 0:01:45]} Be7 {[%emt 0:03:47]} 11. axb5 {[%emt 0:01:35]} axb5 {[%emt 0:00:06]} 12. Rxa8 {[%emt 0:00:11]} Bxa8 {[%emt 0:03:27]} 13. Na3 {[%emt 0:02:28]} Qb6 {[%emt 0:02:25]} 14. Qb3 {[%emt 0:01:59]} Bc6 {[%emt 0:01:39]} 15. Nh4 {[%emt 0:03:17]} Bxg2 {[%emt 0:11:30]} 16. Nxg2 {[%emt 0:01:32]} b4 {[%emt 0:00:19]} 17. Nc4 {[%emt 0:00:39]} Qc6 {[%emt 0:01:36]} 18. Bg5 {[%emt 0:07:14]} O-O {[%emt 0:03:42]} 19. Ra1 {[%emt 0:01:00]} Ra8 {[%emt 0:05:07]} 20. Ra2 {[%emt 0:04:11]} Nd5 {[%emt 0:13:19]} 21. Bxe7 {[%emt 0:02:23]} Nxe7 {[%emt 0:00:05]} 22. e4 {[%emt 0:05:08]} Ra6 {[%emt 0:05:05]} 23. Nge3 {[%emt 0:03:03]} Qa8 {[%emt 0:01:07]} 24. Rxa6 {[%emt 0:02:36]} Qxa6 {[%emt 0:00:03]} 25. Nc2 {[%emt 0:03:26]} Nc6 {[%emt 0:01:12]} 26. Kg2 {[%emt 0:01:08]} h6 {[%emt 0:06:51]} 27. f4 {[%emt 0:02:16]} Kf8 {[%emt 0:01:50]} 28. Kf2 {[%emt 0:09:25]} Ke7 {[%emt 0:00:53]} 29. Ke3 {[%emt 0:01:14]} Qa8 {[%emt 0:01:25]} 30. d4 {[%emt 0:12:29]} Nxd4 {[%emt 0:18:18]} 31. Nxd4 {[%emt 0:04:44]} cxd4+ {[%emt 0:00:03]} 32. Kf2 {[%emt 0:00:37]} Qxe4 {[%emt 0:01:10]} 33. Qxb4+ {[%emt 0:00:43]} Kf6 {[%emt 0:00:04]} 34. Qb5 {[%emt 0:01:53]} g5 {[%emt 0:02:20]} 35. Nd6 {[%emt 0:04:28]} Qc2+ {[%emt 0:00:45]} 36. Kg1 {[%emt 0:00:33]} Ke7 {[%emt 0:01:17]} 37. Nxf7 {[%emt 0:04:26]} d3 {[%emt 0:00:36]} 38. Ne5 {[%emt 0:02:30]} Nxe5 {[%emt 0:00:47]} 39. fxe5 {[%emt 0:00:12]} d2 {[%emt 0:01:16]} 40. Qb7+ {[%emt 0:01:59]} Kf8 {[%emt 0:00:16]} 41. Qf3+ {[%emt 0:03:05]} Kg8 {[%emt 0:00:15]} 0-1

[Event "Dutch Open 2022"]
[Site "Dieren"]
[Date "2022.08.02"]
[Round "7.4"]
[White "Baselmans, Sam"]
[Black "Balaji Sekar"]
[Result "0-1"]
[ECO "B21"]
[WhiteElo "2182"]
[BlackElo "1189"]
[Annotator "RC"]
[PlyCount "122"]
[EventDate "2022.07.14"]
[EventType "swiss"]
[EventCountry "NED"]
[SourceTitle "playchess.com"]
[Source "ChessBase"]
[SourceQuality "1"]
[TimeControl "40/5400+30:1800+30"]

1. e4 {[%emt 0:00:03]} c5 {[%emt 0:00:09]} 2. Be2 {[%emt 0:00:09]} Nc6 {[%emt 0:03:24]} 3. d3 {[%emt 0:00:08]} g6 {[%emt 0:03:25]} 4. f4 {[%emt 0:00:20]} Bg7 {[%emt 0:00:28]} 5. Nf3 {[%emt 0:00:19]} e6 {[%emt 0:03:02]} 6. O-O {[%emt 0:00:20]} Nge7 {[%emt 0:00:15]} 7. c3 {[%emt 0:01:31]} d5 {[%emt 0:00:19]} 8. Qe1 {[%emt 0:02:34]} O-O {[%emt 0:02:53]} 9. Na3 {[%emt 0:09:19]} b6 {[%emt 0:07:50]} 10. Rb1 {[%emt 0:04:40]} Ba6 {[%emt 0:05:22]} 11. e5 {[%emt 0:02:20]} d4 {[%emt 0:14:18]} 12. b4 {[%emt 0:07:40]} cxb4 {[%emt 0:04:52]} 13. cxb4 {[%emt 0:00:28]} b5 {[%emt 0:00:28]} 14. Bb2 {[%emt 0:02:41]} Rc8 {[%emt 0:07:33]} 15. Rc1 {[%emt 0:02:29]} Qb6 {[%emt 0:05:18]} 16. Nc2 {[%emt 0:04:26]} Nd5 {[%emt 0:06:53]} 17. g3 {[%emt 0:04:38]} Bb7 {[%emt 0:03:16]} 18. Qf2 {[%emt 0:06:51]} Ndxb4 {[%emt 0:07:56]} 19. Nxb4 {[%emt 0:01:18]} Nxb4 {[%emt 0:00:02]} 20. Bxd4 {[%emt 0:01:05]} Qa5 {[%emt 0:00:01]} 21. a3 {[%emt 0:02:26]} Rxc1 {[%emt 0:02:48]} 22. Rxc1 {[%emt 0:00:43]} Qxa3 {[%emt 0:00:15]} 23. Ra1 {[%emt 0:04:32]} Qb3 {[%emt 0:00:12]} 24. Rxa7 {[%emt 0:02:25]} Bd5 {[%emt 0:00:42]} 25. Ne1 {[%emt 0:02:17]} Nc6 {[%emt 0:02:10]} 26. Ra1 {[%emt 0:05:33]} Nxd4 {[%emt 0:00:24]} 27. Qxd4 {[%emt 0:00:09]} Rc8 {[%emt 0:00:09]} 28. Bd1 {[%emt 0:06:47]} Qc3 {[%emt 0:01:15]} 29. Qxc3 {[%emt 0:00:26]} Rxc3 {[%emt 0:00:01]} 30. Rb1 {[%emt 0:00:31]} Bf8 {[%emt 0:00:24]} 31. Kf1 {[%emt 0:01:59]} b4 {[%emt 0:02:26]} 32. Rb2 {[%emt 0:06:11]} b3 {[%emt 0:01:33]} 33. Ke2 {[%emt 0:01:11]} Ba3 {[%emt 0:00:11]} 34. Rb1 {[%emt 0:00:41]} Bc1 {[%emt 0:03:54]} 35. Bc2 {[%emt 0:03:40]} Ba3 {[%emt 0:06:07]} 36. Bd1 {[%emt 0:02:50]} Bc1 {[%emt 0:04:15]} 37. Bc2 {[%emt 0:00:23]} b2 {[%emt 0:00:08]} 38. Kd1 {[%emt 0:00:06]} Ba2 {[%emt 0:00:14]} 39. Rxc1 {[%emt 0:00:06]} bxc1=Q+ {[%emt 0:05:08]} 40. Kxc1 {[%emt 0:00:06]} Bd5 {[%emt 0:00:00]} 41. Kd2 {[%emt 0:30:29]} Ra3 {[%emt 0:25:40]} 42. Kc1 {[%emt 0:05:42]} Kg7 {[%emt 0:00:13]} 43. Kb2 {[%emt 0:01:14]} Ra2+ {[%emt 0:00:14]} 44. Kc3 {[%emt 0:00:06]} Ra1 {[%emt 0:00:05]} 45. Kd2 {[%emt 0:00:11]} h6 {[%emt 0:01:05]} 46. h4 {[%emt 0:00:23]} g5 {[%emt 0:00:16]} 47. hxg5 {[%emt 0:00:14]} hxg5 {[%emt 0:00:01]} 48. Bd1 {[%emt 0:02:44]} Ra2+ {[%emt 0:01:18]} 49. Ke3 {[%emt 0:01:14]} Ra1 {[%emt 0:00:00]} 50. Kd2 {[%emt 0:00:00]} Kg6 {[%emt 0:00:00]} 51. Nc2 {[%emt 0:00:00]} Ra2 {[%emt 0:00:00]} 52. Ke3 {[%emt 0:00:00]} Bb3 {[%emt 0:00:00]} 53. Nb4 {[%emt 0:00:00]} Ra4 {[%emt 0:00:00]} 54. Bxb3 {[%emt 0:00:00]} Rxb4 {[%emt 0:00:00]} 55. Bc2 {[%emt 0:00:00]} Rb2 {[%emt 0:00:36]} 56. Ba4 {[%emt 0:00:00]} Kf5 {[%emt 0:05:19]} 57. Be8 {[%emt 0:00:00]} Rb7 {[%emt 0:01:00]} 58. Bc6 {[%emt 0:00:00]} Rb4 {[%emt 0:00:34]} 59. Be4+ {[%emt 0:00:00]} Rxe4+ {[%emt 0:01:20]} 60. dxe4+ {[%emt 0:00:00]} Kg4 {[%emt 0:00:03]} 61. fxg5 {[%emt 0:00:00]} Kxg3 {[%emt 0:00:02]} 0-1

[Event "Dutch Open 2022"]
[Site "Dieren"]
[Date "2022.08.02"]
[Round "7.5"]
[White "Gilmanov, Mansur"]
[Black "Kumar, Prajit Sai"]
[Result "1/2-1/2"]
[ECO "D02"]
[WhiteElo "2377"]
[BlackElo "2040"]
[Annotator "RC"]
[PlyCount "51"]
[EventDate "2022.07.14"]
[EventType "swiss"]
[EventCountry "NED"]
[SourceTitle "playchess.com"]
[Source "ChessBase"]
[SourceQuality "1"]
[TimeControl "40/5400+30:1800+30"]

1. d4 {[%emt 0:03:11]} d5 {[%emt 0:00:04]} 2. Nf3 {[%emt 0:00:04]} Nf6 {[%emt 0:00:02]} 3. g3 {[%emt 0:00:05]} c5 {[%emt 0:00:17]} 4. Bg2 {[%emt 0:00:31]} cxd4 {[%emt 0:00:07]} 5. Nxd4 {[%emt 0:00:26]} e5 {[%emt 0:00:30]} 6. Nb3 {[%emt 0:01:43]} Be6 {[%emt 0:01:27]} 7. O-O {[%emt 0:05:01]} h6 {[%emt 0:01:07]} 8. f4 {[%emt 0:18:34]} exf4 {[%emt 0:00:06]} 9. gxf4 {[%emt 0:00:36]} Nc6 {[%emt 0:04:14]} 10. f5 {[%emt 0:02:04]} Bd7 {[%emt 0:02:03]} 11. Nc3 {[%emt 0:01:36]} Qb6+ {[%emt 0:01:07]} 12. e3 {[%emt 0:05:45]} O-O-O {[%emt 0:00:54]} 13. Nxd5 {[%emt 0:03:29]} Nxd5 {[%emt 0:00:09]} 14. Qxd5 {[%emt 0:02:48]} Be6 {[%emt 0:02:47]} 15. Qf3 {[%emt 0:05:49]} Bd5 {[%emt 0:03:24]} 16. Qf2 {[%emt 0:00:55]} Bxg2 {[%emt 0:00:13]} 17. Kxg2 {[%emt 0:00:11]} Bd6 {[%emt 0:02:52]} 18. e4 {[%emt 0:06:12]} Qb4 {[%emt 0:00:29]} 19. Re1 {[%emt 0:03:35]} Rhe8 {[%emt 0:01:10]} 20. c3 {[%emt 0:12:53]} Qa4 {[%emt 0:01:28]} 21. Nd4 {[%emt 0:05:30]} Bc5 {[%emt 0:01:02]} 22. b3 {[%emt 0:04:00]} Bxd4 {[%emt 0:08:28]} 23. bxa4 {[%emt 0:02:30]} Bxf2 {[%emt 0:00:06]} 24. Kxf2 {[%emt 0:00:09]} Ne5 {[%emt 0:01:10]} 25. Rg1 {[%emt 0:05:05]} h5 {[%emt 0:02:32]} 26. h3 {[%emt 0:06:00]} 1/2-1/2

[Event "Dutch Open 2022"]
[Site "Dieren"]
[Date "2022.08.02"]
[Round "7.6"]
[White "Elgersma, Onno"]
[Black "Ypma, Peter"]
[Result "1/2-1/2"]
[ECO "C65"]
[WhiteElo "2316"]
[BlackElo "2346"]
[Annotator "RC"]
[PlyCount "216"]
[EventDate "2022.07.14"]
[EventType "swiss"]
[EventCountry "NED"]
[SourceTitle "playchess.com"]
[Source "ChessBase"]
[SourceQuality "1"]
[TimeControl "40/5400+30:1800+30"]

1. e4 {[%emt 0:00:04]} e5 {[%emt 0:00:08]} 2. Nf3 {[%emt 0:00:11]} Nc6 {[%emt 0:00:11]} 3. Bb5 {[%emt 0:00:13]} Nf6 {[%emt 0:00:06]} 4. d3 {[%emt 0:02:20]} Bc5 {[%emt 0:00:51]} 5. O-O {[%emt 0:08:01]} d6 {[%emt 0:01:47]} 6. c3 {[%emt 0:01:02]} O-O {[%emt 0:00:32]} 7. Bg5 {[%emt 0:11:12]} Bb6 {[%emt 0:05:40]} 8. a4 {[%emt 0:03:40]} a6 {[%emt 0:03:38]} 9. Bc4 {[%emt 0:01:14]} Ne7 {[%emt 0:01:04]} 10. Nbd2 {[%emt 0:13:34]} c6 {[%emt 0:04:44]} 11. Ba2 {[%emt 0:10:22]} Ng6 {[%emt 0:13:57]} 12. Nh4 {[%emt 0:11:55]} Nxh4 {[%emt 0:01:59]} 13. Bxh4 {[%emt 0:00:05]} h6 {[%emt 0:00:13]} 14. Bg3 {[%emt 0:13:24]} Bg4 {[%emt 0:05:42]} 15. Qc2 {[%emt 0:00:38]} Nh5 {[%emt 0:00:56]} 16. Kh1 {[%emt 0:02:48]} Bc7 {[%emt 0:10:34]} 17. d4 {[%emt 0:04:26]} Qf6 {[%emt 0:08:18]} 18. Qd3 {[%emt 0:00:43]} exd4 {[%emt 0:04:35]} 19. cxd4 {[%emt 0:00:26]} Nxg3+ {[%emt 0:00:25]} 20. fxg3 {[%emt 0:01:51]} Qg6 {[%emt 0:00:13]} 21. Nf3 {[%emt 0:01:36]} Bd8 {[%emt 0:05:16]} 22. Rae1 {[%emt 0:00:39]} Bf6 {[%emt 0:01:36]} 23. Qd2 {[%emt 0:02:35]} b5 {[%emt 0:03:59]} 24. Bb1 {[%emt 0:01:50]} Bg5 {[%emt 0:01:58]} 25. Qc3 {[%emt 0:01:11]} Qe6 {[%emt 0:01:22]} 26. e5 {[%emt 0:00:41]} Qc4 {[%emt 0:02:40]} 27. Qxc4 {[%emt 0:04:50]} bxc4 {[%emt 0:00:04]} 28. exd6 {[%emt 0:00:06]} Bxf3 {[%emt 0:01:39]} 29. Rxf3 {[%emt 0:00:08]} Rad8 {[%emt 0:00:31]} 30. Ba2 {[%emt 0:00:55]} Rxd6 {[%emt 0:00:08]} 31. Bxc4 {[%emt 0:00:30]} Rxd4 {[%emt 0:00:13]} 32. b3 {[%emt 0:00:11]} a5 {[%emt 0:00:27]} 33. Rf5 {[%emt 0:01:47]} Bd2 {[%emt 0:02:36]} 34. Rd1 {[%emt 0:00:30]} Rfd8 {[%emt 0:00:28]} 35. Bxf7+ {[%emt 0:00:29]} Kh7 {[%emt 0:00:13]} 36. h4 {[%emt 0:00:57]} Bb4 {[%emt 0:01:46]} 37. Rxd4 {[%emt 0:00:29]} Rxd4 {[%emt 0:00:01]} 38. h5 {[%emt 0:00:17]} Rd3 {[%emt 0:12:21]} 39. Bg6+ {[%emt 0:00:59]} Kg8 {[%emt 0:00:01]} 40. Re5 {[%emt 0:01:07]} Rd1+ {[%emt 0:03:04]} 41. Kh2 {[%emt 0:30:10]} Re1 {[%emt 0:30:04]} 42. Rf5 {[%emt 0:00:00]} Re3 {[%emt 0:00:00]} 43. Rf7 {[%emt 0:00:00]} Rxb3 {[%emt 0:00:00]} 44. Rc7 {[%emt 0:00:00]} Kf8 {[%emt 0:00:00]} 45. Rxc6 {[%emt 0:00:00]} Ra3 {[%emt 0:00:00]} 46. Re6 {[%emt 0:00:00]} Be7 {[%emt 0:00:00]} 47. Re4 {[%emt 0:00:00]} Rc3 {[%emt 0:00:00]} 48. Kh3 {[%emt 0:00:00]} Rc8 {[%emt 0:00:00]} 49. Kg4 {[%emt 0:00:00]} Rb8 {[%emt 0:00:00]} 50. Kf5 {[%emt 0:00:00]} Rb4 {[%emt 0:00:00]} 51. Re5 {[%emt 0:00:00]} Rxa4 {[%emt 0:00:00]} 52. Rb5 {[%emt 0:00:00]} Rd4 {[%emt 0:00:00]} 53. Rxa5 {[%emt 0:00:00]} Rd8 {[%emt 0:00:00]} 54. g4 {[%emt 0:00:00]} Rb8 {[%emt 0:00:00]} 55. Ra6 {[%emt 0:00:00]} Bd8 {[%emt 0:01:22]} 56. Ra7 {[%emt 0:00:00]} Be7 {[%emt 0:03:22]} 57. Ke6 {[%emt 0:00:00]} Bg5 {[%emt 0:00:49]} 58. Ra6 {[%emt 0:00:26]} Kg8 {[%emt 0:01:08]} 59. Rc6 {[%emt 0:01:29]} Rf8 {[%emt 0:00:39]} 60. Rc7 {[%emt 0:01:16]} Rf6+ {[%emt 0:00:13]} 61. Kd7 {[%emt 0:01:16]} Rf8 {[%emt 0:00:25]} 62. Be8 {[%emt 0:01:17]} Rf1 {[%emt 0:01:21]} 63. Rc8 {[%emt 0:00:50]} Rf8 {[%emt 0:03:12]} 64. Ra8 {[%emt 0:00:52]} Bh4 {[%emt 0:00:20]} 65. Ra3 {[%emt 0:01:07]} Bg5 {[%emt 0:00:49]} 66. g3 {[%emt 0:00:21]} Rf1 {[%emt 0:00:29]} 67. Ra8 {[%emt 0:00:10]} Rf8 {[%emt 0:01:13]} 68. Rc8 {[%emt 0:00:10]} Kh8 {[%emt 0:00:38]} 69. Rb8 {[%emt 0:01:13]} Kg8 {[%emt 0:00:09]} 70. Rb5 {[%emt 0:01:02]} Rf1 {[%emt 0:00:40]} 71. Bg6 {[%emt 0:01:22]} Rf8 {[%emt 0:00:25]} 72. Rb7 {[%emt 0:01:42]} Rf6 {[%emt 0:00:42]} 73. Rb5 {[%emt 0:01:16]} Rf8 {[%emt 0:00:41]} 74. Be4 {[%emt 0:00:38]} Rf7+ {[%emt 0:01:13]} 75. Ke6 {[%emt 0:00:26]} Re7+ {[%emt 0:00:32]} 76. Kd5 {[%emt 0:00:38]} Re8 {[%emt 0:00:36]} 77. Kd4 {[%emt 0:00:49]} Bf6+ {[%emt 0:00:12]} 78. Kd3 {[%emt 0:00:05]} Rd8+ {[%emt 0:01:06]} 79. Bd5+ {[%emt 0:00:06]} Kh7 {[%emt 0:00:18]} 80. Ke3 {[%emt 0:00:31]} Bg5+ {[%emt 0:00:07]} 81. Ke4 {[%emt 0:00:29]} Re8+ {[%emt 0:00:16]} 82. Kf5 {[%emt 0:00:11]} Rf8+ {[%emt 0:00:17]} 83. Ke5 {[%emt 0:00:10]} Bf6+ {[%emt 0:00:11]} 84. Ke6 {[%emt 0:00:17]} Bg5 {[%emt 0:00:24]} 85. Rb7 {[%emt 0:00:38]} Rf6+ {[%emt 0:00:26]} 86. Kd7 {[%emt 0:00:23]} Rf8 {[%emt 0:00:04]} 87. Rb5 {[%emt 0:00:57]} Rd8+ {[%emt 0:00:19]} 88. Ke6 {[%emt 0:00:06]} Rf8 {[%emt 0:00:05]} 89. Be4+ {[%emt 0:01:11]} Kg8 {[%emt 0:00:12]} 90. Bg6 {[%emt 0:01:06]} Rf6+ {[%emt 0:00:08]} 91. Kd7 {[%emt 0:00:18]} Rf8 {[%emt 0:00:05]} 92. Rb7 {[%emt 0:00:56]} Rf6 {[%emt 0:00:29]} 93. Rb8+ {[%emt 0:00:22]} Rf8 {[%emt 0:00:05]} 94. Bh7+ {[%emt 0:00:20]} Kf7 {[%emt 0:00:05]} 95. Rb7 {[%emt 0:00:25]} Rd8+ {[%emt 0:00:55]} 96. Kc6+ {[%emt 0:00:07]} Kf8 {[%emt 0:00:14]} 97. Rc7 {[%emt 0:00:55]} Rd1 {[%emt 0:01:11]} 98. Bc2 {[%emt 0:00:44]} Rd4 {[%emt 0:03:50]} 99. Bb3 {[%emt 0:00:29]} Rxg4 {[%emt 0:00:49]} 100. Rf7+ {[%emt 0:00:44]} Ke8 {[%emt 0:00:04]} 101. Rxg7 {[%emt 0:00:28]} Rxg3 {[%emt 0:00:10]} 102. Bd5 {[%emt 0:00:21]} Bf4 {[%emt 0:00:51]} 103. Rh7 {[%emt 0:00:42]} Rc3+ {[%emt 0:00:30]} 104. Kb5 {[%emt 0:00:06]} Rc7 {[%emt 0:00:33]} 105. Rh8+ {[%emt 0:00:24]} Ke7 {[%emt 0:00:11]} 106. Bc6 {[%emt 0:00:09]} Kf6 {[%emt 0:00:24]} 107. Rg8 {[%emt 0:00:52]} Rg7 {[%emt 0:00:20]} 108. Rxg7 {[%emt 0:00:18]} Kxg7 {[%emt 0:00:05]} 1/2-1/2